fUST/lending_fUST_20250814
["ID","MTS","AMOUNT","RATE_DAILY","PERIOD"]
[379135439,1755154248114,-478.21,0.00018461,2]
[379135440,1755154248124,-460.0,0.00018461,2]
[379135441,1755154248134,-460.0,0.00018461,2]
[379135442,1755154248144,-460.0,0.00018461,2]
[379135443,1755154248154,-460.0,0.00018461,2]
[379135444,1755154248165,-417.15472785,0.00018461,2]
[379135445,1755154248175,-160.0,0.00018461,2]
[379135446,1755154248185,-160.0,0.00018461,2]
[379135447,1755154248195,-843.37884167,0.00018461,2]
[379135448,1755154248205,-160.0,0.00018461,2]
[379135449,1755154248215,-232.05637125,0.00018461,2]
[379135450,1755154248227,-215.59581046,0.00018461,2]
[379135451,1755154248237,-607.95,0.00018462,2]
[379135453,1755154248248,-460.0,0.00018462,2]
[379135454,1755154248259,-460.0,0.00018462,2]
[379135455,1755154248268,-460.0,0.00018462,2]
[379135456,1755154248279,-460.0,0.00018462,2]
[379135457,1755154248289,-460.0,0.00018462,2]
[379135458,1755154248299,-460.0,0.00018462,2]
[379135459,1755154248310,-460.0,0.00018462,2]
[379135460,1755154248319,-460.0,0.00018462,2]
[379135461,1755154248329,-460.0,0.00018462,2]
[379135462,1755154248340,-460.0,0.00018462,2]
[379135463,1755154248353,-510.64,0.00018462,2]
[379135464,1755154248363,-460.0,0.00018462,2]
[379135465,1755154248372,-460.0,0.00018462,2]
[379135466,1755154248383,-460.0,0.00018462,2]
[379135467,1755154248392,-460.0,0.00018462,2]
[379135468,1755154248402,-460.0,0.00018462,2]
[379135469,1755154248412,-460.0,0.00018462,2]
[379135470,1755154248421,-460.0,0.00018462,2]
[379135471,1755154248431,-460.0,0.00018462,2]
[379135472,1755154248440,-215.098278,0.00018462,2]
[379135473,1755154248450,-460.0,0.00018462,2]
[379135474,1755154248459,-347.02905511,0.00018462,2]
[379135475,1755154248469,-565.41,0.00018462,2]
[379135476,1755154248479,-151.0,0.00018462,2]
[379135477,1755154248489,-1019.21,0.00018462,2]
[379135478,1755154248499,-460.0,0.00018462,2]
[379135479,1755154248510,-460.0,0.00018462,2]
[379135480,1755154248520,-460.0,0.00018462,2]
[379135481,1755154248530,-460.0,0.00018462,2]
[379135482,1755154248540,-460.0,0.00018462,2]
[379135483,1755154248550,-469.255848,0.00018462,2]
[379135484,1755154248560,-460.0,0.00018462,2]
[379135485,1755154248570,-469.255848,0.00018462,2]
[379135486,1755154248579,-460.0,0.00018462,2]
[379135487,1755154248590,-460.0,0.00018462,2]
[379135488,1755154248600,-460.0,0.00018462,2]
[379135489,1755154248610,-460.0,0.00018462,2]
[379135490,1755154248620,-460.0,0.00018462,2]
[379135491,1755154248631,-460.0,0.00018462,2]
[379135492,1755154248642,-569.12,0.00018462,2]
[379135493,1755154248652,-460.0,0.00018462,2]
[379135494,1755154248662,-460.0,0.00018462,2]
[379135495,1755154248672,-500.0,0.00018462,2]
[379135496,1755154248682,-460.0,0.00018462,2]
[379135497,1755154248692,-460.0,0.00018462,2]
[379135498,1755154248702,-460.0,0.00018462,2]
[379135499,1755154248712,-460.0,0.00018462,2]
[379135500,1755154248722,-460.0,0.00018462,2]
[379135501,1755154248731,-982.57,0.00018462,2]
[379135502,1755154248741,-460.0,0.00018462,2]
[379135503,1755154248751,-604.76,0.00018462,2]
[379135504,1755154248765,-460.0,0.00018462,2]
[379135505,1755154248774,-460.0,0.00018462,2]
[379135506,1755154248784,-701.1,0.00018462,2]
[379135507,1755154248795,-460.0,0.00018462,2]
[379135508,1755154248814,-460.0,0.00018462,2]
[379135509,1755154248831,-166.89903676,0.00018462,2]
[379135510,1755154248841,-460.0,0.00018462,2]
[379135511,1755154248851,-460.0,0.00018462,2]
[379135512,1755154248860,-460.0,0.00018462,2]
[379135513,1755154248870,-1173.66,0.00018462,2]
[379135514,1755154248880,-460.0,0.00018462,2]
[379135515,1755154248891,-460.0,0.00018462,2]
[379135516,1755154248901,-460.0,0.00018462,2]
[379135517,1755154248911,-513.58,0.00018462,2]
[379135518,1755154248922,-460.0,0.00018463,2]
[379135519,1755154248944,-460.0,0.00018463,2]
[379135520,1755154248966,-460.0,0.00018463,2]
[379135521,1755154248988,-460.0,0.00018463,2]
[379135522,1755154249010,-558.69,0.00018463,2]
[379135523,1755154249032,-554.91,0.00018463,2]
[379135524,1755154249055,-460.0,0.00018463,2]
[379135525,1755154249077,-460.0,0.00018463,2]
[379135526,1755154249099,-151.0,0.00018463,2]
[379135527,1755154249123,-205.518455,0.00018463,2]
[379135528,1755154249146,-205.518455,0.00018463,2]
[379135529,1755154249170,-151.0,0.00018463,2]
[379135530,1755154249194,-152.850651,0.00018463,2]
[379135531,1755154249216,-151.39255,0.00018464,2]
[379135532,1755154249238,-151.0,0.00018464,2]
[379135533,1755154249263,-160.0,0.00018464,2]
[379135534,1755154249288,-160.0,0.00018464,2]
[379135535,1755154249308,-160.0,0.00018464,2]
[379135536,1755154249317,-160.0,0.00018464,2]
[379135537,1755154249328,-160.0,0.00018464,2]
[379135538,1755154249339,-461.9529908,0.00018464,2]
[379135539,1755154249348,-528.19044044,0.00018464,2]
[379135540,1755154249358,-160.0,0.00018464,2]
[379135541,1755154249368,-460.0,0.00018465,2]
[379135542,1755154249379,-460.0,0.00018465,2]
[379135543,1755154249389,-460.0,0.00018465,2]
[379135544,1755154249400,-151.0,0.00018465,2]
[379135545,1755154249410,-460.0,0.00018465,2]
[379135546,1755154249423,-460.0,0.00018465,2]
[379135547,1755154249432,-151.0,0.00018465,2]
[379135548,1755154249442,-460.0,0.00018465,2]
[379135549,1755154249453,-151.0,0.00018465,2]
[379135550,1755154249463,-460.0,0.00018465,2]
[379135551,1755154249473,-455.073744,0.00018467,2]
[379135552,1755154249483,-455.073744,0.00018467,2]
[379135553,1755154249493,-500.0,0.00018473,2]
[379135554,1755154249503,-502.59815031,0.00018473,2]
[379135555,1755154249513,-500.0,0.00018473,2]
[379135556,1755154249523,-443.93350073,0.00018473,2]
[379135557,1755154249533,-500.0,0.00018473,2]
[379135558,1755154249543,-500.0,0.00018473,2]
[379135559,1755154249552,-500.28495406,0.00018473,2]
[379135560,1755154249562,-500.16354776,0.00018473,2]
[379135561,1755154249572,-608.05807921,0.00018473,2]
[379135562,1755154249582,-606.41745911,0.00018473,2]
[379135563,1755154249591,-501.26885153,0.00018473,2]
[379135564,1755154249602,-500.0,0.00018473,2]
[379135565,1755154249612,-501.85067971,0.00018473,2]
[379135566,1755154249622,-501.44489275,0.00018473,2]
[379135567,1755154249633,-500.36713433,0.00018473,2]
[379135568,1755154249642,-163.60182701,0.00018473,2]
[379135569,1755154249652,-501.20507684,0.00018473,2]
[379135570,1755154249661,-500.0,0.00018473,2]
[379135571,1755154249671,-500.64338912,0.00018473,2]
[379135572,1755154249681,-506.56214664,0.00018473,2]
[379135573,1755154249691,-371.67141257,0.00018473,2]
[379135574,1755154249702,-498.32540657,0.00018473,2]
[379135575,1755154249711,-500.0,0.00018473,2]
[379135576,1755154249721,-500.0,0.00018473,2]
[379135577,1755154249731,-500.0,0.00018473,2]
[379135578,1755154249740,-501.69937957,0.00018473,2]
[379135579,1755154249750,-500.86885129,0.00018473,2]
[379135580,1755154249764,-500.0,0.00018473,2]
[379135581,1755154249774,-500.0,0.00018473,2]
[379135582,1755154249784,-500.56493664,0.00018473,2]
[379135583,1755154249794,-501.11600658,0.00018473,2]
[379135584,1755154249805,-500.0,0.00018473,2]
[379135585,1755154249815,-500.0,0.00018473,2]
[379135586,1755154249824,-238.06044461,0.00018473,2]
[379135587,1755154249834,-168.0,0.00018485,2]
[379135588,1755154249845,-530.68525731,0.000185,2]
[379135589,1755154249854,-11931.07,0.000185,2]
[379135590,1755154249864,-200.0,0.00018537,2]
[379135591,1755154249874,-200.0,0.00018537,2]
[379135592,1755154249884,-200.0,0.00018537,2]
[379135593,1755154249893,-200.0,0.00018537,2]
[379135594,1755154249903,-200.0,0.00018537,2]
[379135595,1755154249913,-200.0,0.00018537,2]
[379135596,1755154249923,-262.92559148,0.0001859,2]
[379135597,1755154249932,-151.0,0.0001859,2]
[379135598,1755154249941,-151.0,0.0001859,2]
[379135599,1755154249951,-151.0,0.0001859,2]
[379135600,1755154249960,-283.66218537,0.0001859,2]
[379135601,1755154249970,-151.0,0.0001859,2]
[379135602,1755154249980,-151.0,0.0001859,2]
[379135603,1755154249989,-151.0,0.0001859,2]
[379135604,1755154249999,-185.64054872,0.0001859,2]
[379135605,1755154250009,-151.35984124,0.0001859,2]
[379135606,1755154250019,-151.0,0.0001859,2]
[379135607,1755154250029,-151.0,0.0001859,2]
[379135608,1755154250038,-151.0,0.0001859,2]
[379135609,1755154250048,-151.0,0.0001859,2]
[379135610,1755154250058,-153.0,0.000186,2]
[379135611,1755154250068,-152.76664782,0.00018626,2]
[379135612,1755154250078,-317.0,0.00018641,2]
[379135613,1755154250087,-460.0,0.00018726,2]
[379135614,1755154250097,-460.0,0.00018726,2]
[379135615,1755154250107,-460.0,0.00018726,2]
[379135616,1755154250117,-460.0,0.00018726,2]
[379135617,1755154250126,-460.0,0.00018726,2]
[379135618,1755154250136,-534.57843801,0.00018726,2]
[379135619,1755154250146,-460.0,0.00018726,2]
[379135620,1755154250156,-460.0,0.00018726,2]
[379135621,1755154250166,-363.55252428,0.00018726,2]
[379135622,1755154250176,-460.0,0.00018726,2]
[379135623,1755154250186,-460.0,0.00018726,2]
[379135624,1755154250195,-460.0,0.00018726,2]
[379135625,1755154250205,-460.0,0.00018726,2]
[379135626,1755154250215,-460.0,0.00018726,2]
[379135627,1755154250225,-460.0,0.00018726,2]
[379135628,1755154250234,-460.0,0.00018726,2]
[379135629,1755154250244,-460.0,0.00018726,2]
[379135630,1755154250254,-502.26,0.00018726,2]
[379135631,1755154250264,-519.45,0.00018726,2]
[379135632,1755154250273,-460.0,0.00018726,2]
[379135633,1755154250283,-554.16,0.00018726,2]
[379135634,1755154250293,-460.0,0.00018726,2]
[379135635,1755154250304,-586.33,0.00018726,2]
[379135636,1755154250314,-460.0,0.00018726,2]
[379135637,1755154250324,-542.49,0.00018726,2]
[379135638,1755154250333,-460.0,0.00018726,2]
[379135639,1755154250343,-506.13813166,0.00018726,2]
[379135640,1755154250353,-460.0,0.00018726,2]
[379135641,1755154250363,-460.0,0.00018726,2]
[379135642,1755154250374,-3696.0,0.00018728,2]
[379135643,1755154250385,-219.902138,0.00018728,2]
[379135644,1755154250539,-151.0,0.00018728,2]
[379135645,1755154250549,-183.600232,0.00018728,2]
[379135646,1755154250559,-183.600232,0.00018728,2]
[379135647,1755154250568,-604.168898,0.00018728,2]
[379135648,1755154250578,-604.168898,0.00018728,2]
[379135649,1755154250587,-151.0,0.00018728,2]
[379135650,1755154250596,-151.0,0.00018728,2]
[379135651,1755154250606,-460.0,0.00018729,2]
[379135652,1755154250616,-697.23,0.00018729,2]
[379135653,1755154250625,-966.38,0.00018729,2]
[379135654,1755154250635,-611.61,0.00018729,2]
[379135655,1755154250644,-2512.77,0.00018729,2]
[379135656,1755154250654,-4872.16,0.00018729,2]
[379135657,1755154250663,-220.67147934,0.00018729,2]
[379135658,1755154250672,-770.29,0.00018729,2]
[379135659,1755154250683,-460.0,0.0001873,2]
[379135660,1755154250692,-460.0,0.0001873,2]
[379135661,1755154250701,-460.0,0.0001873,2]
[379135662,1755154250711,-553.12,0.0001873,2]
[379135663,1755154250720,-479.68,0.0001873,2]
[379135664,1755154250730,-2996.79,0.0001873,2]
[379135665,1755154250739,-1004.08,0.0001873,2]
[379135666,1755154250749,-1063.5,0.0001873,2]
[379135667,1755154250762,-3975.35,0.0001873,2]
[379135668,1755154250772,-460.0,0.0001873,2]
[379135669,1755154250781,-545.75435216,0.0001873,2]
[379135670,1755154250791,-1979.56,0.0001873,2]
[379135671,1755154250800,-3282.99,0.0001873,2]
[379135672,1755154250810,-460.0,0.0001873,2]
[379135673,1755154250820,-460.0,0.0001873,2]
[379135674,1755154250829,-745.41,0.0001873,2]
[379135675,1755154250839,-513.78,0.0001873,2]
[379135676,1755154250848,-2910.96,0.0001873,2]
[379135677,1755154250857,-557.11,0.0001873,2]
[379135678,1755154250866,-460.0,0.0001873,2]
[379135679,1755154250876,-1131.14,0.0001873,2]
[379135680,1755154250886,-753.55,0.0001873,2]
[379135681,1755154250896,-461.77736228,0.00018731,2]
[379135682,1755154250905,-460.0,0.00018731,2]
[379135683,1755154250915,-460.0,0.00018731,2]
[379135684,1755154250925,-460.0,0.00018731,2]
[379135685,1755154250934,-704.83,0.00018731,2]
[379135686,1755154250944,-460.0,0.00018731,2]
[379135687,1755154250953,-460.0,0.00018731,2]
[379135688,1755154250962,-1312.65,0.00018731,2]
[379135689,1755154250972,-2404.29,0.00018731,2]
[379135690,1755154250982,-1125.78,0.00018731,2]
[379135691,1755154250991,-460.0,0.00018731,2]
[379135692,1755154251000,-460.0,0.00018731,2]
[379135693,1755154251009,-460.0,0.00018731,2]
[379135694,1755154251019,-804.85,0.00018731,2]
[379135695,1755154251028,-1391.19,0.00018731,2]
[379135696,1755154251038,-460.0,0.00018731,2]
[379135697,1755154251047,-460.0,0.00018731,2]
[379135698,1755154251057,-460.0,0.00018731,2]
[379135699,1755154251066,-460.0,0.00018731,2]
[379135700,1755154251075,-1092.45,0.00018731,2]
[379135701,1755154251085,-625.45,0.00018731,2]
[379135702,1755154251093,-460.0,0.00018731,2]
[379135703,1755154251103,-460.0,0.00018731,2]
[379135704,1755154251112,-1445.8,0.00018731,2]
[379135705,1755154251122,-1080.13,0.00018731,2]
[379135706,1755154251132,-460.0,0.00018731,2]
[379135707,1755154251141,-740.27,0.00018731,2]
[379135708,1755154251151,-460.0,0.00018731,2]
[379135709,1755154251160,-460.0,0.00018731,2]
[379135710,1755154251170,-547.75,0.00018731,2]
[379135711,1755154251182,-1023.92,0.00018731,2]
[379135712,1755154251191,-1574.22,0.00018731,2]
[379135713,1755154251201,-460.0,0.00018731,2]
[379135714,1755154251211,-965.22,0.00018731,2]
[379135715,1755154251220,-463.55183053,0.00018731,2]
[379135716,1755154251229,-550.28225915,0.00018731,2]
[379135717,1755154251238,-460.0,0.00018731,2]
[379135718,1755154251248,-460.0,0.00018731,2]
[379135719,1755154251257,-460.0,0.00018731,2]
[379135720,1755154251267,-500.0,0.00018731,2]
[379135721,1755154251276,-460.0,0.00018731,2]
[379135722,1755154251285,-893.84,0.00018731,2]
[379135723,1755154251295,-460.0,0.00018731,2]
[379135724,1755154251304,-639.31,0.00018731,2]
[379135725,1755154251314,-460.0,0.00018731,2]
[379135726,1755154251323,-502.03,0.00018731,2]
[379135727,1755154251332,-460.0,0.00018731,2]
[379135728,1755154251341,-460.0,0.00018731,2]
[379135729,1755154251351,-460.0,0.00018731,2]
[379135730,1755154251360,-466.82770987,0.00018731,2]
[379135731,1755154251369,-719.19,0.00018731,2]
[379135732,1755154251379,-505.71,0.00018731,2]
[379135733,1755154251388,-1423.27,0.00018731,2]
[379135734,1755154251398,-460.0,0.00018731,2]
[379135735,1755154251407,-460.0,0.00018731,2]
[379135736,1755154251417,-460.0,0.00018731,2]
[379135737,1755154251427,-460.0,0.00018731,2]
[379135738,1755154251437,-469.255848,0.00018732,2]
[379135739,1755154251446,-469.255848,0.00018732,2]
[379135740,1755154251455,-460.0,0.00018732,2]
[379135741,1755154251465,-1392.94,0.00018732,2]
[379135742,1755154251474,-559.17958988,0.00018732,2]
[379135743,1755154251483,-1207.07,0.00018732,2]
[379135744,1755154251492,-223.692644,0.00018732,2]
[379135745,1755154251502,-471.24,0.00018732,2]
[379135746,1755154251512,-460.0,0.00018732,2]
[379135747,1755154251521,-1298.58,0.00018732,2]
[379135748,1755154251530,-13508.1,0.00018732,2]
[379135749,1755154251539,-1399.64,0.00018732,2]
[379135750,1755154251549,-706.06,0.00018732,2]
[379135751,1755154251558,-460.0,0.00018732,2]
[379135752,1755154251567,-925.98,0.00018732,2]
[379135753,1755154251577,-2572.32,0.00018732,2]
[379135754,1755154251586,-14824.88,0.00018732,2]
[379135755,1755154251595,-3664.5,0.00018732,2]
[379135756,1755154251604,-10481.44,0.00018732,2]
[379135757,1755154251614,-3351.34,0.00018732,2]
[379135758,1755154251623,-460.0,0.00018732,2]
[379135759,1755154251634,-844.04,0.00018732,2]
[379135760,1755154251644,-1518.23,0.00018732,2]
[379135761,1755154251653,-656.24,0.00018732,2]
[379135762,1755154251662,-460.0,0.00018732,2]
[379135763,1755154251671,-1157.88,0.00018732,2]
[379135764,1755154251680,-3504.77,0.00018732,2]
[379135765,1755154251689,-1653.1,0.00018732,2]
[379135766,1755154251699,-1115.64,0.00018732,2]
[379135767,1755154251708,-151.0,0.00018733,2]
[379135768,1755154251717,-151.0,0.00018733,2]
[379135769,1755154251726,-460.0,0.00018733,2]
[379135770,1755154251736,-460.0,0.00018733,2]
[379135771,1755154251746,-781.01,0.00018733,2]
[379135772,1755154251758,-460.0,0.00018733,2]
[379135773,1755154251768,-75.60489529,0.00018733,2]
[379135774,1755154251983,-384.39510471,0.00018733,2]
[379135775,1755154251993,-460.0,0.00018733,2]
[379135776,1755154252002,-262.13039703,0.00018733,2]
[379135777,1755154252015,-143.71388175,0.00018733,2]
[379135778,1755154252024,-460.0,0.00018733,2]
[379135779,1755154252033,-242.38028429,0.00018733,2]
[379135780,1755154252252,-460.0,0.00018185,2]
[379135781,1755154252263,-460.0,0.00018459,2]
[379135782,1755154252273,-257.74971571,0.00018733,2]
[379135783,1755154252283,-460.0,0.00018733,2]
[379135784,1755154252293,-431.66502719,0.00018733,2]
[379135785,1755154252302,-460.0,0.00018733,2]
[379135786,1755154252311,-460.0,0.00018733,2]
[379135787,1755154252320,-460.0,0.00018733,2]
[379135788,1755154252330,-460.0,0.00018733,2]
[379135789,1755154252339,-151.0,0.00018733,2]
[379135790,1755154252348,-460.0,0.00018733,2]
[379135791,1755154252357,-1033.56,0.00018733,2]
[379135792,1755154252366,-595.6957815,0.00018733,2]
[379135793,1755154252375,-1711.88,0.00018733,2]
[379135794,1755154252386,-460.0,0.00018733,2]
[379135795,1755154252395,-460.0,0.00018733,2]
[379135796,1755154252404,-460.0,0.00018733,2]
[379135797,1755154252414,-460.0,0.00018733,2]
[379135798,1755154252423,-460.0,0.00018733,2]
[379135799,1755154252433,-597.05,0.00018733,2]
[379135800,1755154252442,-460.0,0.00018733,2]
[379135801,1755154252452,-483.01642712,0.00018733,2]
[379135802,1755154252462,-460.0,0.00018733,2]
[379135803,1755154252471,-460.0,0.00018733,2]
[379135804,1755154252480,-460.0,0.00018733,2]
[379135805,1755154252489,-460.0,0.00018733,2]
[379135806,1755154252499,-460.0,0.00018733,2]
[379135807,1755154252508,-944.2,0.00018733,2]
[379135808,1755154252517,-517.62,0.00018733,2]
[379135809,1755154252527,-460.0,0.00018733,2]
[379135810,1755154252537,-577.08,0.00018733,2]
[379135811,1755154252546,-460.0,0.00018733,2]
[379135812,1755154252555,-460.0,0.00018733,2]
[379135813,1755154252564,-460.0,0.00018733,2]
[379135814,1755154252574,-460.0,0.00018733,2]
[379135815,1755154252583,-631.92,0.00018733,2]
[379135816,1755154252593,-878.28,0.00018733,2]
[379135817,1755154252602,-1654.44,0.00018733,2]
[379135818,1755154252612,-460.0,0.00018733,2]
[379135819,1755154252621,-460.0,0.00018733,2]
[379135820,1755154252631,-460.0,0.00018733,2]
[379135821,1755154252641,-958.96,0.00018733,2]
[379135822,1755154252660,-205.518455,0.00018733,2]
[379135823,1755154252680,-460.0,0.00018733,2]
[379135824,1755154252700,-460.0,0.00018733,2]
[379135825,1755154252722,-460.0,0.00018733,2]
[379135826,1755154252743,-205.518455,0.00018733,2]
[379135827,1755154252766,-460.0,0.00018733,2]
[379135828,1755154252786,-460.0,0.00018733,2]
[379135829,1755154252810,-460.0,0.00018733,2]
[379135830,1755154252830,-460.0,0.00018733,2]
[379135831,1755154252853,-460.0,0.00018733,2]
[379135832,1755154252876,-703.46,0.00018733,2]
[379135833,1755154252907,-460.0,0.00018733,2]
[379135834,1755154252936,-460.0,0.00018733,2]
[379135835,1755154252959,-523.09,0.00018733,2]
[379135836,1755154252981,-460.0,0.00018733,2]
[379135837,1755154253003,-460.0,0.00018733,2]
[379135838,1755154253012,-460.0,0.00018733,2]
[379135839,1755154253021,-460.0,0.00018733,2]
[379135840,1755154253031,-460.0,0.00018733,2]
[379135841,1755154253040,-460.0,0.00018733,2]
[379135842,1755154253050,-460.0,0.00018733,2]
[379135843,1755154253059,-460.0,0.00018733,2]
[379135844,1755154253069,-903.92,0.00018733,2]
[379135845,1755154253079,-1205.27,0.00018733,2]
[379135846,1755154253088,-162.26205788,0.00018733,2]
[379135847,1755154253098,-837.1,0.00018733,2]
[379135848,1755154253107,-460.0,0.00018733,2]
[379135849,1755154253116,-151.0,0.00018733,2]
[379135850,1755154253126,-894.94,0.00018733,2]
[379135851,1755154253136,-460.0,0.00018733,2]
[379135852,1755154253146,-460.0,0.00018733,2]
[379135853,1755154253156,-460.0,0.00018733,2]
[379135854,1755154253165,-2074.91,0.00018733,2]
[379135855,1755154253174,-460.0,0.00018733,2]
[379135856,1755154253184,-1474.8,0.00018733,2]
[379135857,1755154253193,-460.0,0.00018733,2]
[379135858,1755154253203,-481.41100767,0.00018733,2]
[379135859,1755154253212,-1404.22,0.00018733,2]
[379135860,1755154253222,-460.0,0.00018733,2]
[379135861,1755154253231,-460.0,0.00018733,2]
[379135862,1755154253241,-460.0,0.00018733,2]
[379135863,1755154253250,-460.0,0.00018733,2]
[379135864,1755154253259,-460.0,0.00018733,2]
[379135865,1755154253269,-460.0,0.00018733,2]
[379135866,1755154253278,-550.1,0.00018733,2]
[379135867,1755154253288,-460.0,0.00018733,2]
[379135868,1755154253297,-460.0,0.00018733,2]
[379135869,1755154253307,-460.0,0.00018733,2]
[379135870,1755154253316,-460.0,0.00018733,2]
[379135871,1755154253326,-464.4,0.00018733,2]
[379135872,1755154253335,-460.0,0.00018733,2]
[379135873,1755154253344,-1521.54,0.00018733,2]
[379135874,1755154253353,-460.0,0.00018733,2]
[379135875,1755154253362,-460.0,0.00018733,2]
[379135876,1755154253373,-460.0,0.00018733,2]
[379135877,1755154253383,-460.0,0.00018733,2]
[379135878,1755154253392,-1020.57,0.00018733,2]
[379135879,1755154253402,-601.99,0.00018733,2]
[379135880,1755154253411,-460.0,0.00018733,2]
[379135881,1755154253420,-460.0,0.00018733,2]
[379135882,1755154253429,-460.0,0.00018733,2]
[379135883,1755154253439,-464.26,0.00018733,2]
[379135884,1755154253448,-1227.26,0.00018733,2]
[379135885,1755154253458,-460.0,0.00018733,2]
[379135886,1755154253467,-460.0,0.00018733,2]
[379135887,1755154253476,-460.0,0.00018733,2]
[379135888,1755154253485,-460.0,0.00018733,2]
[379135889,1755154253495,-151.0,0.00018734,2]
[379135890,1755154253504,-151.0,0.00018734,2]
[379135891,1755154253513,-151.0,0.00018734,2]
[379135892,1755154253523,-151.0,0.00018734,2]
[379135893,1755154253533,-151.0,0.00018735,2]
[379135894,1755154253542,-151.0,0.00018735,2]
[379135895,1755154253551,-151.0,0.00018735,2]
[379135896,1755154253560,-151.0,0.00018735,2]
[379135897,1755154253570,-469.255848,0.00018735,2]
[379135898,1755154253579,-469.255848,0.00018735,2]
[379135899,1755154253588,-460.0,0.00018735,2]
[379135900,1755154253598,-460.0,0.00018735,2]
[379135901,1755154253607,-830.51,0.00018735,2]
[379135902,1755154253617,-460.0,0.00018735,2]
[379135903,1755154253627,-710.29,0.00018735,2]
[379135904,1755154253636,-205.518455,0.00018735,2]
[379135905,1755154253645,-205.518455,0.00018735,2]
[379135906,1755154253654,-519.2,0.00018735,2]
[379135907,1755154253663,-910.1,0.00018735,2]
[379135908,1755154253799,-460.0,0.00018735,2]
[379135909,1755154253834,-460.0,0.00018735,2]
[379135910,1755154253844,-693.54,0.00018735,2]
[379135911,1755154253853,-284.93809274,0.00018735,2]
[379135912,1755154253862,-446.49532951,0.00018735,2]
[379135913,1755154253871,-460.0,0.00018735,2]
[379135914,1755154253882,-151.0,0.00018735,2]
[379135915,1755154253891,-460.0,0.00018735,2]
[379135916,1755154253901,-201.79763711,0.00018735,2]
[379135917,1755154253910,-460.0,0.00018735,2]
[379135918,1755154253919,-460.0,0.00018735,2]
[379135919,1755154253929,-1776.35,0.00018735,2]
[379135920,1755154253939,-696.41,0.00018735,2]
[379135921,1755154253948,-478.21,0.00018735,2]
[379135922,1755154253958,-460.0,0.00018735,2]
[379135923,1755154253967,-460.0,0.00018735,2]
[379135924,1755154253977,-234.8625366,0.00018735,2]
[379135925,1755154253986,-460.0,0.00018735,2]
[379135926,1755154253996,-151.0,0.00018736,2]
[379135927,1755154254005,-151.0,0.00018736,2]
[379135928,1755154254015,-607.95,0.00018736,2]
[379135929,1755154254024,-460.0,0.00018736,2]
[379135930,1755154254034,-565.71745877,0.00018736,2]
[379135931,1755154254043,-460.0,0.00018736,2]
[379135932,1755154254052,-151.0,0.00018736,2]
[379135933,1755154254062,-465.11333928,0.00018736,2]
[379135934,1755154254072,-460.0,0.00018736,2]
[379135935,1755154254081,-151.0,0.00018736,2]
[379135936,1755154254091,-460.0,0.00018736,2]
[379135937,1755154254100,-460.0,0.00018736,2]
[379135938,1755154254110,-510.64,0.00018736,2]
[379135939,1755154254119,-460.0,0.00018736,2]